{"text_format":"3","workbook":"xlsx","n_sheets":3,"sheets":["ToR","Sheet2","Sheet1"],"not_rendered":{"defined_names":38},"read":"whole","date_system":"1900"}

{"sheet":"ToR","index":0,"n_rows":80,"n_cols":10,"rows_kept":80,"merged":[[0,0,0,8],[3,0,3,9],[21,0,21,8],[22,0,22,9],[49,0,49,8],[50,0,50,9],[59,0,59,8],[60,0,60,9],[62,0,62,8],[63,0,63,8],[65,0,65,9],[66,0,66,9],[67,0,67,7],[67,8,67,9],[68,0,68,7],[68,8,68,9],[69,0,69,7],[69,8,69,9],[70,0,70,7],[70,8,70,9],[71,0,71,7],[71,8,71,9],[72,0,72,7],[72,8,72,9],[73,0,73,7],[73,8,73,9],[74,0,74,7],[74,8,74,9],[75,0,75,7],[75,8,75,9],[76,0,76,7],[76,8,76,9],[77,0,77,7],[77,8,77,9],[78,0,78,7],[78,8,78,9],[79,0,79,9]]}
["ITT No. PFRU2-2025-152 Procurement of training equipment for pre-medical aid | ITT № PFRU2-2025-152 Закупівля навчально-тренувального обладнання з домедичної допомоги\nVolume 3 - Terms of Reference (ToR)/Specifications | Розділ 3 - Технічне завдання (ТЗ)/Специфікації"]
[]
["№","Name according to the procurement - Description and Specifications of Item\n|\n(It is allowed to submit analogues for any positions)","Назва згідно закупівлі - Опис і специфікації предмету закупівлі\n|\n(Дозволяється подача аналогів на будь-які позиції)","Order Qty (pcs)\n|\nОб'єм замовлення (шт)","Delivery destination\n|\nМісце доставки","Name according to the proposal \n| \nНазва згідно пропозиції","Proposed description & technical specifications (include brand & model (if applicable), etc.) \n|\nПропонований опис і технічні характеристики (включаючи марку та модель(за наявності), тощо)","Delivery time - calendar days (after PO signing) \n|\nТермін поставки - календарні дні (після підписання Договору на поставку)","Unit Price, UAH excl. VAT\n| \nЦіна за од-цю, грн. без ПДВ","Total Price, UAH excl. VAT\n| \nЗагальна ціна, грн. без ПДВ"]
["LOT 1 (Manikins and simulators) / ЛОТ 1 (Манекени та симулятори)"]
[1,"Laerdal Little Junior QCPR Manikin or equivalent\n\nTechnical requirements:\nReal-time compression and ventilation feedback. Post-event performance report including CPR score and recommendations for improvement. Detailed information on compression release, depth and rate, ventilation volume, number of compressions/ ventilations/ cycles. \nIncludes: manikin, bag-training mat, 2 face masks, 2 Junior airway sets, user manual.","Манекен для відпрацювання серцево-легеневої реанімації у дітей Laerdal Little Junior QCPR Manikin або еквівалент\n\nТехнічні вимоги:\nЗворотний зв'язок у реальному часі з компресії та вентиляції. Звіт про продуктивність після заходу, включно з оцінкою серцево-легкової реанімації та рекомендації щодо поліпшення. Докладні відомості про відпускання компресії, глибину та швидкості, об'єму вентиляції, кількості компресій/вентиляції/ циклів. \nКомплектація:\nманекен, сумку-учобний килимок, 2 лицьові маски, 2 комплекти дихальних шляхів Junior, посібник з використання.",2,"Kryvyi Rih | м. Кривий Ріг",{"$nulls":3},{"v":0,"d":"0.00"},{"$f":"D5*I5","v":{"v":0,"d":"0.00"}}]
[2,"Laerdal Little Junior QCPR or equivalent CPR training manikin\n\nTechnical requirements:\nReal-time feedback on compressions and ventilations.\nPost-event performance report including CPR assessment and recommendations for improvement. Detailed information on compression release, depth and rate, ventilation volume, number of compressions/ ventilations/ cycles.\nIncludes: Laerdal Little Anne CPR manikin, Interchangeable face, Interchangeable lungs, Antiseptic wipes for manikin, bag-training mat.","Манекен для відпрацювання серцево-легеневої реанімації у підлітків Laerdal Little Junior QCPR або еквівалент\n\nТехнічні вимоги:\nЗворотній зв'язок у реальному часі стосовно компресії та вентиляції.\nЗвіт про продуктивність після заходу, включаючи оцінку серцево-легеневої реанімації та рекомендації щодо покращення. Детальні відомості про відпускання компресії, глибину та швидкість, обсяг вентиляції, кількість компресій / вентиляції / циклів. \nКомплектація: Манекен для проведення серцево-легеневої реанімації Laerdal Little Anne, Змінне обличчя, Змінні легені, Серветки з антисептиком для обробки манекена, Сумка-килимок.",2,"Kryvyi Rih | м. Кривий Ріг",{"$nulls":3},{"v":0,"d":"0.00"},{"$f":"D6*I6","v":{"v":0,"d":"0.00"}}]
[3,"Laerdal Baby Anne QCPR Infant CPR manikin or equivalent\n\nTechnical requirements:\nQCPR Technology: Real-time feedback. Realistic chest resistance. Simulated airway. Head tilt/ jaw thrust maneuver capability. Crying sound effect. Works with QCPR Instructor/ Learner apps. \nLittle Baby QCPR Light Mannequin - 1 pc. Manikin wipes - 6 pcs. Manikin coverall - 1 pc. Soft carrying bag - 1 pc. User manual - 1 pc. Important product information - 1 pc. AA batteries - 2 pcs.","Манекен для відпрацювання серцево-легеневої реанімації у немовлят Laerdal Baby Anne QCPR або еквівалент\n\nТехнічні вимоги:\nТехнологія QCPR: Зворотний зв'язок у реальному часі. Реалістичний опір грудної клітки. Імітація дихальних шляхів. Можливість виконання маневру відгинання голови/висування щелепи. Звуковий ефект плачу. Працює з додатками QCPR Instructor / Learner. \nМанекен Little Baby QCPR Light - 1 шт. Серветки для манекена - 6 шт. Комбінезон для манекена - 1 шт. М'яка сумка для перенесення - 1 шт. Посібник користувача - 1 шт. Важлива інформація про продукт - 1 шт. Батарейки АА - 2 шт.",4,"2 - Kryvyi Rih | м. Кривий Ріг\n2 - Vinnytsia | м. Вінниця",{"$nulls":3},{"v":0,"d":"0.00"},{"$f":"D7*I7","v":{"v":0,"d":"0.00"}}]
[4,"Full-size Rescue Ready Wound and Injury Manikin or equivalent\n\nTechnical requirements:\nManikin for practicing advanced first aid skills for injuries: - Facial burns I., II., III. Degree; - Forehead wound; - Jaw injury; - Open clavicle fracture and chest contusion; - Abdominal trauma with slight bowel protrusion; - Open fracture of the humerus of the right upper arm; - Open fracture of the right arm, soft tissue tears; - Impact of the bone tissue of the thigh; - Compound femoral fracture of the right thigh; - Metal external knife wound to the right thigh; - Open fracture of the tibia of the right lower leg; - Open fracture of the right leg, amputated injury of the little finger; - Burns of the left forearm I., II., III. Degree; - Injury from amputated left thigh; - Closed fracture of the left tibia and contusion of the barley joint and foot; - The chest wall is cut and connected to close the wound; - The abdominal wall is incised and sutured to close the wound; - Incision injury of the thigh; - Ulcers on the thighs; - Gangrene for the legs, pressure ulcers on the 1st, 2nd and 3rd toes and heels; - Amputation of the upper arm; - Amputation of the lower leg.","Манекен повнорозмірний з ранами і пораненнями Rescue Ready або еквівалент\n\nТехнічні вимоги:\nМанекен для відпрацювання навичок надання розширеної невідкладної допомоги при травмах:  - Опіки обличчя I., II., III. Ступінь; - Рана на лобі; - Травма щелепи; - Відкритий перелом ключиці та забій грудей; - Травма черевної порожнини з невеликим випинанням кишки; - Відкритий перелом плечової кістки правої верхньої руки; - Відкритий перелом правої руки, розриви м'яких тканин; - Вплив кісткової тканини стегна; - Складовий стегновий перелом правого стегна; - Металева стороння ножова ранка на праве стегно; - Відкритий перелом гомілки правої нижньої частини ноги; - Відкритий перелом правої ноги, ампутована травма маленького пальця; - Опіки на лівому передпліччі I., II., III. Ступінь; - Травма від ампутованого лівого стегна; - Закритий перелом гомілки лівої гомілки та забиття ячмінного суглоба та стопи; - Грудна стінка розрізається та з'єднується, щоб закрити рану; - Черевна стінка розпалюється та зашивається, щоб закрити рану; - Травма стегна розжига; - Виразки на стегнах; - Гангрен для ніг, виразки під тиском на 1-й, 2-й та 3-й пальці та каблуки; - Ампутація верхньої руки; - Ампутація нижньої частини ноги.",3,"2 - Kryvyi Rih | м. Кривий Ріг\n1 - Kropyvnytskyi | \nм. Кропивницький",{"$nulls":3},{"v":0,"d":"0.00"},{"v":0,"d":"0.00"}]
[5,"PRESTAN Adult CPR Manikin or equivalent\n\nTechnical requirements:\nWith LED indicators and sound signals. Head tilt capability. \nPackage contents: - PRESTAN adult torso mannequin; - 10 lung bags; - instructions for use; - carrying bag.","Манекен(дорослий) для проведення Серцево-Легеневої Реанімації PRESTAN Adult CPR Manikin або еквівалент\n\nТехнічні вимоги:\nЗі світлодіодними індикаторами та звуковими сигналами. Можливість нахилу голови. \nКомплектація: - манекен-торс дорослого PRESTAN; - 10 легеневих пакетів; - інструкція з використання; - сумка для перенесення.",4,"2 -  Kropyvnytskyi | \nм. Кропивницький\n2 - Vinnytsia | м. Вінниця",{"$nulls":3},{"v":0,"d":"0.00"},{"v":0,"d":"0.00"}]
[6,"ANATOMICAL MODEL OF THE HUMAN BODY ORGANS ANATOMY OF THE HUMAN TORSO or equivalent\n\nTechnical requirements:\nDetailed 3D model. The model represents organs such as lungs, stomach, heart, kidneys, liver, intestines, etc. PVC. The organs can be pulled out. Included: Human torso 24.5 cm, Width 12.5 cm, Depth 5 cm.","АНАТОМІЧНА МОДЕЛЬ ЛЮДСЬКОГО ТІЛА ОРГАНИ АНАТОМІЯ ТУЛУБА ЛЮДИНИ або еквівалент\n\nТехнічні вимоги:\nДетальна 3D -модель. Модель представляє такі органи, як легені, шлунок, серце, нирки, печінка, інстини тощо. PVC. Органи можна витягнути. \nВключено: Тулуб людини 24.5 см, Ширина 12.5 см, Глибина 5 см. ",1,"Kropyvnytskyi | \nм. Кропивницький",{"$nulls":3},{"v":0,"d":"0.00"},{"v":0,"d":"0.00"}]
[7,"Manikin for training in the production of nasopharyngeal airway with electronics, intubation simulator or equivalent\n\nTechnical requirements:\nPhysiological mobility of the head, neck, lower jaw and larynx; Possibility of using various intubation methods (through the mouth, nose, \"on the finger\", mechanical ventilation); Direct visualization of respiratory movements of lung models; Model of the respiratory tract in the form of a bronchial tree; Control of the volume of the stomach to assess the correct position of the intubation tube; Audible signal in case of excessive pressure of the laryngoscope blade on the teeth of the upper jaw; Conducting laryngoscopy.","Манекен для тренування в постановці назофарингітального повітроводу з електронікою, тренажер інтубації або еквівалент\n\nТехнічні вимоги:\nФізіологічна рухливість голови, шиї, нижньої щелепи та гортані; Можливість застосування різних методів інтубації (через рот, ніс, \"на пальці\", апаратної ШВЛ); Пряма візуалізація дихальних рухів моделей легень; Модель дихальних шляхів у вигляді бронхіального дерева; Контроль за обсягом шлунка для оцінки правильності положення інтубаційної трубки; Звуковий сигнал при надмірному тиску клинка ларингоскопа на зуби верхньої щелепи; Проведення ларингоскопії.",1,"Vinnytsia | м. Вінниця",{"$nulls":3},{"v":0,"d":"0.00"},{"v":0,"d":"0.00"}]
[8,"EasyPractice Nodal Bleeding Simulator or equivalent\n\nTechnical requirements:\nFor practicing skills in stopping bleeding by tamponade in the groin area. Bleeding simulation: Hand pump (BP-01) for creating pulsating arterial hemorrhage. Material: Highly elastic reinforced silicone (latex-free). \nPackage contents: - Realistic nodal bleeding simulator. - Connecting tubes with connectors. - Advanced artificial blood supply system with hand pump. - Operating instructions and warranty card.","Симулятор вузлової кровотечі EasyPractice або еквівалент\n\nТехнічні вимоги:\nДля відпрацювання навичок зупинки кровотечі методом тампонування в паховій зоні. Імітація кровотечі: Ручна помпа (ВР-01) для створення пульсуючого артеріального крововиливу. Матеріал: Високоеластичний армований силікон (без латексу). \nКомплектація: - Реалістичний симулятор вузлової кровотечі. - З’єднувальні трубки з конекторами. - Вдосконалена система подачі штучної крові з ручною помпою. - Інструкція з експлуатації та гарантійний лист.",1,"Kropyvnytskyi | \nм. Кропивницький",{"$nulls":3},{"v":0,"d":"0.00"},{"v":0,"d":"0.00"}]
[9,"Human Lungs – Collapsible demonstration model or equivalent\n\nTechnical requirements:\nThe model is collapsible, demonstrates the structure of the human lungs: bronchial tree, bronchioles and alveoli, pulmonary arteries, pulmonary veins, nerves and lymphatic vessels, pulmonary pleura, a heart model (as in the photo) is also included in the set. Made of plastic, painted in bright natural colors and placed on a tablet stand. \nThe model dimensions are 30 x 40 x 10 cm.","Легені людини – розбірна демонстраційна модель або еквівалент\n\nТехнічні вимоги:\nМодель є розбірною, демонструє будову легень людини: бронхіальне дерево, бронхіоли i альвеоли, легеневі артерії, легеневі вени, нерви і лімфатичні судини, легеневу плевру, модель серця (в комплектації як на фото) теж входить до набору. Виготовлена з пластику, забарвлена в яскраві природні кольори та розміщена на пленшеті-підставці. \nРозміри моделі 30 х 40 х 10 см.",1,"Kropyvnytskyi | \nм. Кропивницький",{"$nulls":3},{"v":0,"d":"0.00"},{"v":0,"d":"0.00"}]
[10,"Dual wound simulator with storage case, SL-02-BC KIT or equivalent\n\nTechnical requirements:\nThe simulator has two injuries: a deep cut wound and a large-calibre gunshot wound.","Симулятор двох поранень з кейсом для зберігання, SL-02-BC KIT або еквівалент\n\nТехнічні вимоги:\nСимулятор має два поранення: глибока різана рана та вогнепальне поранення крупного калібру.",2,"Kyiv | м. Київ",{"$nulls":3},{"v":0,"d":"0.00"},{"v":0,"d":"0.00"}]
[11,"Arm training model for intravenous injections\n\nSet: 1 injection arm; 1 stand; 1 plastic bowl; 1 disposable syringe and 1 injection catheter; infusion tube system.","Модель-тренажер руки для внутрішньовенних ін’єкцій\n\nКомплект: 1 рука для ін'єкцій; 1 штатив; 1 пластикова чаша; 1 одноразовий шприц і 1 катетер для ін'єкцій; система трубок для інфузій.",4,"Kyiv | м. Київ",{"$nulls":3},{"v":0,"d":"0.00"},{"v":0,"d":"0.00"}]
[12,"Pneumothorax decompression manikin\n\nTechnical requirements:\nThere are two windows on the right side of the chest, which are used to display the anatomical structures of the different layers of the chest.\nThe set includes a carrying case.","Манекен для декомпресії пневмотораксу\n\nТехнічні вимоги:\nНа правій грудній клітці є два вікна, які використовується для відображення анатомічних структур різних шарів грудної клітки.\nВ комплект входить кейс для транспортування.",2,"Kyiv | м. Київ",{"$nulls":3},{"v":0,"d":"0.00"},{"v":0,"d":"0.00"}]
[13,"Neck laceration simulator, PRO-014-BC or equivalent\n\nTechnical requirements:\nThe simulator has a wound: a deep cut.\nComponents: realistic simulator of a deep neck wound; connecting tube with connector; bottle for artificial blood; operating instructions and warranty card.","Симулятор різаного поранення шиї, PRO-014-BC або еквівалент\n\nТехнічні вимоги:\nСимулятор має поранення: глибока різана рана.\nКомплектація: реалістичний симулятор глибокого поранення шиї; з’єднувальна трубка з конектором; пляшка для подачі штучної крові; інструкція з експлуатації та гарантійний лист.",2,"Kyiv | м. Київ",{"$nulls":3},{"v":0,"d":"0.00"},{"v":0,"d":"0.00"}]
[14,"Open fracture of a limb, PRO-01 or equivalent\n\nTechnical requirements:\nThe manikin has elastic fastenings with textile Velcro strips for attachment to the limbs of an extra or manikin. The set includes an extension cord to increase the length.","Відкритий перелом кінцівки, PRO-01 або еквівалент\n\nТехнічні вимоги:\nМуляж має еластичне кріплення на текстильних  липучках для розташування на кінцівках статиста чи манекену. У комплекті іде подовжувач для збільшення довжини.",5,"Kyiv | м. Київ",{"$nulls":3},{"v":0,"d":"0.00"},{"v":0,"d":"0.00"}]
[15,"Critical bleeding simulator for tamponade skills, MS-03-BC or equivalent\n\nTechnical requirements:\nThe simulator has a wound: a deep gunshot wound.\nComponents: realistic simulator of a deep gunshot wound to the thigh; connecting tube with connector; bottle for artificial blood supply (500 ml); operating instructions and warranty card.","Симулятор критичної кровотечі для навичок тампонування, MS-03-BC або еквівалент\n\nТехнічні вимоги:\nСимулятор має поранення: глибоке вогнепальне поранення.\nКомплектація: реалістичний симулятор глибокого вогнепального поранення стегна; з’єднувальна трубка з конектором; пляшка для подачі штучної крові (500 мл); інструкція з експлуатації та гарантійний лист.",5,"Kyiv | м. Київ",{"$nulls":3},{"v":0,"d":"0.00"},{"$f":"D19*I19","v":{"v":0,"d":"0.00"}}]
[16,"PRO-XL series extension or equivalent\n\nTechnical requirements:\nMade of high-quality soft silicone, has Velcro fastening;\nDimensions: 34 x 17 cm.","Подовжувач серії PRO-XL або еквівалент\n\nТехнічні вимоги:\nВиготовлений з високоякісного м’якого силікону, має липучку-кріплення Velcro;\nРозміри: 34х17 см.",2,"Kyiv | м. Київ",{"$nulls":3},{"v":0,"d":"0.00"},{"v":0,"d":"0.00"}]
[17,"PRO-XL series extension or equivalent\n\nTechnical requirements:\n10 built-in training scenarios — from simple to complex situations. “Play” and “Pause” buttons — real-time control of the training process. Voice and visual prompts — clear instructions in Ukrainian and English. Volume control. Wireless control. Simulation of a discharge without electric current. Assessment of the correct location of the electrodes. \nKIT:\n- Training automatic external defibrillator;\n- Convenient bag-case for transportation;\n- Wireless remote control;\n- Set of electrodes for children;\n- Set of electrodes for adults;\n- Connection cables;\n- Charger;\n- Set of batteries.","Навчальний АЗД (Автоматичний зовнішній дефібрилятор)/ AED TRAINER або еквівалент\n\nТехнічні вимоги:\n 10 вбудованих навчальних сценаріїв — від простих до складних ситуацій. Кнопки “Відтворення” та “Пауза” — контроль навчального процесу в режимі реального часу. Голосові та візуальні підказки — чіткі інструкції українською та англійською мовами. Регулювання гучності. Безпровідне управління. Імітація розряду без електричного струму. Оцінка правильності розташування електродів. \nКОМПЛЕКТ:\n- Тренувальний автоматичний зовнішній дефібрилятор;\n- Зручна сумка-кейс для транспортування;\n- Безпровідний пульт дистанційного керування;\n- Набір електродів для дітей;\n- Набір електродів для дорослих;\n- Кабелі для підключення;\n- Зарядний пристрій;\n- Комплект батарейок.",7,"3 -  Kropyvnytskyi | \nм. Кропивницький\n4 - Vinnytsia | м. Вінниця",{"$nulls":3},{"v":0,"d":"0.00"},{"$f":"D21*I21","v":{"v":0,"d":"0.00"}}]
["Subtotal for LOT 1 | Проміжний підсумок ЛОТ 1",{"$nulls":8},{"$f":"SUM(J5:J21)","v":{"v":0,"d":"0.00"}}]
["LOT 2 (Components for extended tactical first aid kits) / ЛОТ 2 (Комплектуючі для тактичних аптечок розширеного типу)"]
[1,"Tourniquet - CAT (Combat-Application-Tourniquet) Generation 7 or equivalent\n\nTechnical requirements:\nWith a red tip.\nMaterial - Nylon, polypropylene and metal inserts. Length 95 cm. Velcro fastener. double-sided clip for quick fixation of the tourniquet. Weight 76 g.","Джгут - турнікет CAT (Combat-Application-Tourniquet) Generation 7 або еквівалент\n\nТехнічні вимоги:\nЗ червоним наконечником.\nМатеріал - Нейлон, поліпропілен і металеві вставки. Довжина 95 см. Ліпучка-фіксатор. двосторонній затискач для  швидкої фіксації закрутки. Вага 76 г.",340,"50 - Kryvyi Rih | м. Кривий Ріг\n50 - Kropyvnytskyi | \nм. Кропивницький\n240 - Kyiv | м. Київ",{"$nulls":3},{"v":0,"d":"0.00"},{"$f":"D24*I24","v":{"v":0,"d":"0.00"}}]
[2,"Tourniquet \"SICH\" or equivalent\n\nTechnical requirements:\nDuralumin fittings Velcro. Double-locking buckle. Length 93 cm. Width 4 cm.","Турнікет «СІЧ» або еквівалент\n\nТехнічні вимоги:\nДюралюмінієва фурнітура Липучка. Двощільнева пряжка. Довжина 93 см. Ширина 4 см.",250,"50 -  Kropyvnytskyi | \nм. Кропивницький\n200 - Vinnytsia | м. Вінниця",{"$nulls":3},{"v":0,"d":"0.00"},{"$f":"D25*I25","v":{"v":0,"d":"0.00"}}]
[3,"SAM EXTREMITY TOURNIQUET or equivalent\n\nTechnical requirements:\nControl tape. C-shaped retainer. TRUFLEX™ platform - durable nylon construction. TRUFORCE™ buckle - innovative locking technology. Metal collar. Precision Strap - single-layer nylon strap with separated holes. Length 89 cm. Weight: 108 g. Color - black.","Турнікет SAM EXTREMITY TOURNIQUET або еквівалент\n\nТехнічні вимоги:\nКонтрольна стрічка. С-подібний фіксатор. Платформа TRUFLEX™ – міцна нейлонова конструкція. Пряжка TRUFORCE™ – інноваційна технологія блокування. Металевий вороток. Перфорована стрічка Precision Strap – одношарова нейлонова стрічка, яка має розділені отвори. Довжина 89 см. Вага: 108 г. Колір - чорний.",60,"Kropyvnytskyi | \nм. Кропивницький",{"$nulls":3},{"v":0,"d":"0.00"},{"$f":"D26*I26","v":{"v":0,"d":"0.00"}}]
[4,"SAM Junctional Tourniquet or equivalent\n\nTechnical requirements:\nFor stopping bleeding in difficult areas of the body. Package contents:\nTargeted Compression Device (TCD) — 2 pcs.;\nTCD extension — 1 pc.;\nHand pump — 1 pc.;\nAdditional strap — 1 pc.;\nTourniquet storage case — 1 pc.","Вузловий турнікет SAM Junctional Tourniquet або еквівалент\n\nТехнічні вимоги:\nДля зупинки кровотечі на складних ділянках тіла. Комплектація:\nПристрій цільового стиснення (TCD) — 2 шт.;\nПодовжувач TCD — 1 шт.;\nРучний насос —1 шт.;\nДодатковий ремінець — 1 шт.;\nЧохол для зберігання турнікету — 1 шт.",2,"Kropyvnytskyi | \nм. Кропивницький",{"$nulls":3},{"v":0,"d":"0.00"},{"v":0,"d":"0.00"}]
[5,"Individual dressing package with elastic compression component and protective moisture-resistant shell Paramedic 6″ with one pad or equivalent\n\nTechnical requirements:\nSize: width 15.24 cm, length 155 cm. Composition: elastic tape with built-in absorbent pad and fasteners for reliable fixation.","Бандаж перев’язувальний індивідуальний з еластичним компресійним компонентом і захисною вологостійкою оболонкою Paramedic 6″ з однією подушкою або еквівалент\n\nТехнічні вимоги:\nРозмір: ширина 15,24 см, довжина 155 см. Склад: еластична стрічка з вбудованою абсорбуючою подушкою та кріпленнями для надійної фіксації.",100,"Kryvyi Rih | м. Кривий Ріг",{"$nulls":3},{"v":0,"d":"0.00"},{"v":0,"d":"0.00"}]
[6,"PerSys Medical abdominal compression bandage or equivalent\n\nTechnical requirements:\nSize: 8\", abdominal bandage size 20 cm. (Israeli bandage).","Бандаж компресійний PerSys Medical абдомінальний або еквівалент\n\nТехнічні вимоги:\nРозмір: 8\", розмір абдомінальної пов'язки 20 см. (Ізраїльський бандаж).",94,"30 -  Kropyvnytskyi | \nм. Кропивницький\n64 - Vinnytsia | м. Вінниця",{"$nulls":3},{"v":0,"d":"0.00"},{"v":0,"d":"0.00"}]
[7,"Traumatic Hartmann bandage 10 cm or equivalent\n\nTechnical requirements:\nCompression pad, fixator.","Травматичний бандаж Hartmann 10 см або еквівалент\n\nТехнічні вимоги:\nКомпресійна подушка, фіксатор.",40,"Kropyvnytskyi | \nм. Кропивницький",{"$nulls":3},{"v":0,"d":"0.00"},{"v":0,"d":"0.00"}]
[8,"SWAT tourniquet or equivalent\n\nTechnical requirements:\nThe SWAT (Stretch-Wrap-And-Tuck) multi-purpose tourniquet is both a tourniquet and a high-quality elastic bandage for stopping bleeding. \nSize 138.5 * 10.5 cm.","Джгут типу SWAТ або еквівалент\n\nТехнічні вимоги:\nБагатоцільовий засіб для зупинки кровотеч SWAT (Stretch-Wrap-And-Tuck) являє собою одночасно джгут та якісний еластичний бинт для зупинки кровотеч. \nРозмір 138,5 * 10,5 см.",10,"Vinnytsia | м. Вінниця",{"$nulls":3},{"v":0,"d":"0.00"},{"v":0,"d":"0.00"}]
[9,"FlexiPrime elastic bandage 8 cm x 4 m or equivalent\n\nTechnical requirements:\nMedium elasticity.","Бинт еластичний FlexiPrime 8 см x 4 м або еквівалент\n\nТехнічні вимоги:\nСередньої розтяжності.",200,"Vinnytsia | м. Вінниця",{"$nulls":3},{"v":0,"d":"0.00"},{"v":0,"d":"0.00"}]
[10,"Medical sterile gauze bandage Hemoplast-Polyssia Type 17 7m x 14cm or equivalent\n","Бинт марлевий медичний стерильний Гемопласт-Полісся Тип 17 7м х 14см або еквівалент",200,"Vinnytsia | м. Вінниця",{"$nulls":3},{"v":0,"d":"0.00"},{"v":0,"d":"0.00"}]
[11,"SICH-Bandage 6 – Hemostatic compression bandage or equivalent\n\nTechnical requirements:\nMaterial: cotton, polyamide.\nSize: width 15 cm, length when stretched – 4 m.","SICH-Bandage 6 – Бинт кровоспинний компресійний або еквівалент\n\nТехнічні вимоги:\nМатеріал: бавовна, поліамід.\nРозмір: ширина 15 см, довжина в “розтягнутому” стані – 4 м.",80,"Kyiv | м. Київ",{"$nulls":3},{"v":0,"d":"0.00"},{"v":0,"d":"0.00"}]
[12,"Training gauze for tamponade, TG-10 or equivalent\n\nTechnical requirements:\n10 rolls of gauze, width 80 mm, length 3500 mm.","Тренувальна марля для тампонування, TG-10 або еквівалент\n\nТехнічні вимоги:\n10 рулонів марлі, ширина 80мм, довжина 3500мм.",10,"Kyiv | м. Київ",{"$nulls":3},{"v":0,"d":"0.00"},{"v":0,"d":"0.00"}]
[13,"Nitrile gloves\n\nTechnical requirements:\n100 pieces per pack.\nSize S.","Нітрилові рукавички\n\nТехнічні вимоги:\n100 шт в упаковці.\nРозмір S.",5,"Kyiv | м. Київ",{"$nulls":3},{"v":0,"d":"0.00"},{"v":0,"d":"0.00"}]
[14,"Nitrile gloves\n\nTechnical requirements:\n100 pieces per pack.\nSize M.","Нітрилові рукавички\n\nТехнічні вимоги:\n100 шт в упаковці.\nРозмір M.",5,"Kyiv | м. Київ",{"$nulls":3},{"v":0,"d":"0.00"},{"v":0,"d":"0.00"}]
[15,"Nitrile gloves\n\nTechnical requirements:\n100 pieces per pack.\nSize L.","Нітрилові рукавички\n\nТехнічні вимоги:\n100 шт в упаковці.\nРозмір L.",5,"Kyiv | м. Київ",{"$nulls":3},{"v":0,"d":"0.00"},{"v":0,"d":"0.00"}]
[16,"Nitrile gloves\n\nTechnical requirements:\n100 pieces per pack.\nSize XL.","Нітрилові рукавички\n\nТехнічні вимоги:\n100 шт в упаковці.\nРозмір XL.",5,"Kyiv | м. Київ",{"$nulls":3},{"v":0,"d":"0.00"},{"v":0,"d":"0.00"}]
[17,"Nasopharyngeal airway RUSH № 26 (with lubricant) or equivalent.\n","Назофарингеальний повітровід RUSH № 26 (з лубрикантом) або еквівалент",50,"Vinnytsia | м. Вінниця",{"$nulls":3},{"v":0,"d":"0.00"},{"v":0,"d":"0.00"}]
[18,"Nasopharyngeal airway № 28 Fr Paramedic or equivalent","Повітропровід назофаренгіальний № 28 Fr Paramedic або еквівалент",50,"Vinnytsia | м. Вінниця",{"$nulls":3},{"v":0,"d":"0.00"},{"v":0,"d":"0.00"}]
[19,"Guedel oropharyngeal airway No. 2, (length 80 mm) or equivalent","Повітропровід орофарингеальний Гведела № 2, (довжина 80 мм) або еквівалент",50,"Vinnytsia | м. Вінниця",{"$nulls":3},{"v":0,"d":"0.00"},{"v":0,"d":"0.00"}]
[20,"Guedel oropharyngeal airway No. 4, (length 100 mm) or equivalent","Повітропровід орофарингеальний Гведела № 4 (100 мм) або еквівалент",50,"Vinnytsia | м. Вінниця",{"$nulls":3},{"v":0,"d":"0.00"},{"v":0,"d":"0.00"}]
[21,"Beacon Chest Seal Combo Pack occlusive dressing or equivalent\n\nTechnical requirements:\nConsists of two dressings: ventilated and non-ventilated.","Пов'язка оклюзійна Beacon Chest Seal Combo Pack або еквівалент\n\nТехнічні вимоги:\nСкладається з двох пов'язок: вентильованої і невентильованої.",30,"Vinnytsia | м. Вінниця",{"$nulls":3},{"v":0,"d":"0.00"},{"v":0,"d":"0.00"}]
[22,"Atraumatic scissors 5.7 or equivalent\n\nTechnical requirements:\nBlade bend. Size: 12.7cm x 9.2cm","Ножиці атравматичні 5.7 або еквівалент\n\nТехнічні вимоги:\nВигин леза. Розмір: 12.7см х 9.2 см",14,"Kryvyi Rih | м. Кривий Ріг",{"$nulls":3},{"v":0,"d":"0.00"},{"v":0,"d":"0.00"}]
[23,"The Fox Eye Shield or equivalent\n\nTechnical requirements:\nMade of 1060 aluminum alloy with fabric coating. Dimensions: 7.3 cm x 6 cm; thickness 0.1 cm.","Накладка на око захисна Тhe Fox Eye Shield або еквівалент\n\nТехнічні вимоги:\nВиготовлена зі сплаву алюмінію марки 1060 з тканинним покриттям. Розміри: 7,3 см х 6 см; товщина 0,1 см.",8,"Kryvyi Rih | м. Кривий Ріг",{"$nulls":3},{"v":0,"d":"0.00"},{"v":0,"d":"0.00"}]
[24,"AMBU bag (portable lung ventilation device) or equivalent\n\nTechnical requirements:\nA flexible face (nasal) mask made of soft silicone that attaches to a cylinder. Can be connected to an external oxygen source using an oxygen tube. The AMBU breathing bag is equipped with a pressure limiting valve.","Мішок АМБУ (портативний апарат для вентиляції легенів) або еквівалент\n\nТехнічні вимоги:\nГнучка лицева (носоротова) маска з м'якого силікону, яка кріпиться до балону. Може бути підключений до зовнішнього джерела кисню за допомогою кисневої трубки.Мішок дихальний типу АМБУ оснащений клапаном обмеження тиску.",2,"Vinnytsia | м. Вінниця",{"$nulls":3},{"v":0,"d":"0.00"},{"$f":"D47*I47","v":{"v":0,"d":"0.00"}}]
[25,"Tactical first aid kit pouch for medicines, belt-mounted with MOLLE system or equivalent\n\nTechnical requirements:\nStrong waterproof polyester fabric 600D Cordura 20x15x10cm, black.","Тактичний підсумок під аптечку для медикаментів поясний з системою MOLLE або еквівалент\n\nТехнічні вимоги:\nМіцна водонепроникна поліефірна тканина 600D Cordura 20х15х10см, чорна.",40,"Vinnytsia | м. Вінниця",{"$nulls":3},{"v":0,"d":"0.00"},{"v":0,"d":"0.00"}]
[26,"Poputchik Blanket Silver or equivalent\n\nTechnical requirements:\nDimensions, 160 x 210 (+/-10) cm.","Термоковдра Poputchik Blanket Silver або еквівалент\n\nТехнічні вимоги:\nРозміри, 160 х 210 (+/-10) см.",48,"Vinnytsia | м. Вінниця",{"$nulls":3},{"v":0,"d":"0.00"},{"v":0,"d":"0.00"}]
["Subtotal for LOT 2 | Проміжний підсумок ЛОТ 2",{"$nulls":8},{"$f":"SUM(J24:J49)","v":{"v":0,"d":"0.00"}}]
["LOT 3 (Equipment for immobilisation and evacuation of casualties) / ЛОТ 3 (Засоби для іммобілізації та евакуації постраждалих)"]
[1,"Flexible immobilization splint (ReMed) 100 cm or equivalent\n\nTechnical requirements:\nComposition: radiolucent alloy with foam coating (isolon). Size: 100 x 11 cm.","Шина гнучка іммобілізаційна (ReMed) 100 см або еквівалент\n\nТехнічні вимоги:\nСклад: рентгенопрозорий сплав із покриттям зі спіненого матеріалу (ізолон). Розмір: 100 х 11 см.",12,"Kryvyi Rih | м. Кривий Ріг"]
[2,"Head, neck and thoracic spine immobilization device, Kendrick Extraction Device or equivalent\n\nTechnical requirements:\nIncludes: vest with scent; Adjust a-Pad neck cushion; two head straps; carrying case.","Засіб для іммобілізації голови, шиї та грудного відділу хребта типу Kendrick Extraction Device або еквівалент\n\nТехнічні вимоги:\nКомплектація: жилет з запахом; валик для шиї Adjust a-Pad; два ремені на голову; чохол для перенесення.",2,"Kryvyi Rih | м. Кривий Ріг"]
[3,"Plastic board for spinal immobilization (spinal) + Straps and head restraint for the board, or equivalent\n\nTechnical requirements:\nWith Universal head immobilization system using an orthopedic board. Consists of a pad, two blocks for lateral stabilization with holes for the eye and two straps for fastening. Board length: from 182 cm. Board width: from 45 cm. Board load capacity up to 160 kg. The board is made of plastic, 4 rescue belts are included.","Дошка пластикова для іммобілізації хребта (спінальна) + Ремені та фіксатор голови для дошки, або еквівалент\n\nТехнічні вимоги:\nЗ Універсальною системою іммобілізації голови за допомогою ортопедичної дошки. Складається з подушечки, двох блоків для бічної стабілізації з отворами для вушка та два ремінці для кріплення. Довжина дошки: від 182 см. Ширина дошки: від 45 см. Вантажність дошки до 160 кг. Дошка Виготовлена із пластику, в комплекті 4 рятувальні ремені. ",2,"Kryvyi Rih | м. Кривий Ріг"]
[4,"Paramedic splint Sam Medical SAM Splint XL or equivalent\n\nTechnical requirements:\nDimensions 91 x 14 cm.","Шина парамедична Sam Medical SAM Splint XL або еквівалент\n\nТехнічні вимоги:\nРозміри 91 х 14 см.",8,"Vinnytsia | м. Вінниця"]
[5,"Ambu Perfit ACE Cervical Collar or equivalent\n\nTechnical requirements:\nCervical immobilization collar. 16 sizes in one collar. Radiolucent, CT and MRI compatible. Includes Perfit numbering and color system. Horizontal calibration line. Safety buttons. Nasal cannula holders located on the body of the collar. Dimensions: 56 x 18 x 1.5 cm.","Шийний комір Ambu Perfit ACE або еквівалент\n\nТехнічні вимоги:\nШийний іммобілізаційний комір. 16 розмірів в одному комірі. Радіопрозорі, сумісні з KT та МРТ. Включає систему нумерації та кольору Perfit. Лінія горизонтального калібрування. Кнопки безпеки. Наявні тримачі носової канюлі, розташовані на тілі коміра. Розміри: 56 x 18 x 1.5 см.",6,"Vinnytsia | м. Вінниця"]
[6,"Talon II Model 90C Stretcher with Folding Handle or equivalent\n\nTechnical requirements:\nQuadrant design with retractable handles. Retractable, ergonomic handles. Automatic locking hinges. Chemically resistant Ripstop fabric. IV attachment points. Patient restraint straps available.","Ноші Talon II Model 90C зі складаною ручкою або еквівалент\n\nТехнічні вимоги:\nКонструкція чотирикутника з висувними ручками. Висувні, ергономічні ручки. Автоматичні запірні петлі. Хімічно стійка тканина Ripstop. IV-точки кріплення. Наявність ременів для фіксації пацієнта.",2,"Kropyvnytskyi | \nм. Кропивницький"]
[7,"Frame stretcher up to 120 kg, foldable medical with cover \n\nTechnical requirements:\nThe soft part is made of Oxford 1200D fabric (or other fabric with equivalent technical characteristics), a dense, waterproof fabric. Straps in the leg and chest areas with large, durable fasteners. They can withstand weights of up to 120 kg. Dimensions when unfolded: 2200x530x110 mm. Dimensions when assembled: 1100x100x150 mm.","Ноші каркасні до 120 кг, складні медичні з чохлом\n\nТехнічні вимоги:\nМ'яка частина виготовлена ​​з тканини Oxford 1200D (або іншої рівнозначної за технічними характеристиками), щільної, водонепроникної тканини. Ремені в області ніг та в області грудей з великими міцними фастексами. Витримують вагу до 120 кг. Розміри в розкладеному вигляді: 2200x530x110 мм. Розміри в зібраному вигляді: 1100x100x150 мм.",5,"4 -  Kropyvnytskyi | \nм. Кропивницький\n1 - Vinnytsia | м. Вінниця"]
[8,"Karemat Time Eco TE-1908 Blue or equivalent\n\nTechnical requirements:\nDimensions 180*50x0.8 cm. Polymeric material EVA (ethylene vinyl acetate).","Каремат Time Eco ТЕ-1908 Синій  або еквівалент\n\nТехнічні вимоги:\nРозміри 180*50х0.8 см. Полімерна речовина EVA (етиленвінілацетат).",32,"Vinnytsia | м. Вінниця"]
["Subtotal for LOT 3 | Проміжний підсумок ЛОТ 3",{"$nulls":8},{"$f":"SUM(J52:J59)","v":{"v":0,"d":"0.00"}}]
["LOT 4 (Protective clothing) / ЛОТ 4 (Захисний спецодяг)"]
[1,"Tyvek radiation protection kit, protective suit against radioactive dust or equivalent\n\nTechnical requirements:\nCoveralls. Size XL. The kit consists of:\n- TYVEK Classic Xpert protective coveralls, complying with EN1073-2 (Protection against radioactive contamination);\n- 3M 9332+ Aura FFP3 respirator with protection against radioactive dust;\n- closed panoramic goggles with indirect ventilation;\n- Tyvek high protective shoe covers with ties.\n- Chemical gloves.","Комплект захисту від радіації Tyvek, захисний костюм від радіоактивного пилу або еквівалент\n\nТехнічні вимоги:\nКомбінезон. Розмір XL. Комплект складається з:\n- Захисного комбінезону TYVEK Classic Xpert, що відповідає стандарту EN1073-2 (Захист від радіоактивного забруднення);\n- Респіратора 3М 9332+ Aura FFP3 із захистом від радіоактивного пилу;\n- закриті панорамні окуляри з непрямою вентиляцією;\n- Захисні бахіли Tyvek високі із зав'язками.\n- Хімічні рукавички.",20,"Kropyvnytskyi | \nм. Кропивницький",{"$nulls":3},{"v":0,"d":"0.00"},{"$f":"D62*I62","v":{"v":0,"d":"0.00"}}]
["Subtotal for LOT 4 | Проміжний підсумок ЛОТ 4",{"$nulls":8},{"$f":"SUM(J62)","v":{"v":0,"d":"0.00"}}]
["Total amount VAT excl. |\nЗагальна сума без ПДВ",{"$nulls":8},{"$f":"J22+J50+J60+J63","v":{"v":0,"d":"0.00"}}]
[]
["Core note 1: Delivery destination - Kryvyi Rih, Vinnytsia, Kropyvnytskyi, Kyiv.The contractual delivery address will be provided to the successful bidder in the purchase order. /\nОсновна примітка 1: Місце доставки - м. Кривий Ріг, м. Вінниця, м. Кропивницький, м. Київ. Контрактна адреса доставки буде надана переможцю тендеру в договорі про закупівлю.\n\nGeneral notes: / Загальні примітки:\n1•\tAll Goods offered in response to this ITT must be new and unused. / \n1•\tУсі Товари, що пропонуються у відповідь на цю ITT, повинні бути новими та невикористаними.\n2•\tAll electrical Goods must operate on 240V, 50Hz.  [ignore if not applicable] / \n2•\tВсі електричні товари повинні працювати від мережі 240 В, 50 Гц.  [ігнорувати, якщо не застосовується]\n3•\tUnit prices must include applicable delivery/unloading/carrying (if applicable) costs and local taxes, excluding VAT.  / \n3•\tЦіни повинні включати відповідні витрати на доставку/розвантаження/заніс (якщо застосовується) та місцеві податки, без урахування ПДВ. \n4•\tUnless otherwise indicated, stated brand names or models are for illustrative description only.  An equivalent substitute, as determined by the specifications, is acceptable. / \n4•\tЯкщо не вказано інше, зазначені торгові марки або моделі слугують лише для ілюстративного опису.  Допускається еквівалентна заміна, визначена технічними характеристиками.\n5•\tWarranty service and repair within the country of performance is required for all Goods under this ITT. The warranty coverage must be valid on all Goods for a minimum of twelve (12) months after delivery and acceptance of the Goods, unless otherwise specified in the technical specifications. / \n5•\tГарантійне обслуговування та ремонт у країні виконання робіт є обов'язковим для всіх Товарів за цією ІТТ. Гарантійне покриття має бути дійсним для всіх Товарів протягом щонайменше дванадцяти (12) місяців після доставки та приймання Товарів, якщо інше не зазначено в технічних специфікаціях."]
["Bidder to complete | Для заповненя постачальнику:"]
["Delivery Terms (INCOTERMS 2020): | \nУмови постачання (ІНКОТЕРМС 2020):",{"$nulls":7},"DDP Kryvyi Rih / Кривий Ріг\nDDP Vinnytsia / Вінниця\nDDP Kropyvnytskyi / Кропивницький\nDDP Kyiv / Київ"]
["Payment terms (Chemonics requirement - 100% post-payment, NET within 30 c.d.): | \nУмови оплати (вимога Chemonics - 100% післяплата, NET протягом 30 к.д.):"]
["Bid validity (c.d.) | \nТермін дії пропозиції (к.д.)"]
["Bid currency: | \nВалюта пропозиції: ",{"$nulls":7},"UAH |гривня"]
["Length of warranty on offered item:\nТермін дії гарантії на запропонований товар: \t\t "]
["Company name according to the Charter: | \nНазва компанії згідно Статуту:"]
["EDRPOU | ЄДРПОУ:"]
["Signature of the company representative and Stamp | \nПідпис представника підприємства та Печатка"]
["Date | Дата:"]
["Contact person of the company (whith role): | \nКонтактна особа компанії (із зазначенням посади):"]
["Mobile: | Мобільний:"]
["E-mail: |\nЕлектронна пошта:"]
["Після заповнення, вимога Chemonics - надати цей документ у підписаному/завіреному печаткою форматі PDF та Excel. |\nOnce completed, Chemonics requirement - provide this document in both signed/stamped PDF and Excel formats."]

{"sheet":"Sheet2","index":1,"n_rows":55,"n_cols":10,"rows_kept":55,"hidden":true,"merged":[[46,4,46,9],[51,4,51,9]]}
[]
[]
[{"$nulls":4},"x"]
[{"$nulls":3},150,19.420782939910104,null,19.42,null,{"$f":"D4*G4","v":{"v":2913.0000000000005,"d":"2,913.00"}}]
[{"$nulls":3},30,22.562751967112074,null,22.57,null,{"$f":"G5*D5","v":{"v":677.1,"d":"677.10"}}]
[{"$nulls":8},{"$f":"SUM(I4:I5)","v":{"v":3590.1000000000004,"d":"3,590.10"}}]
[{"$nulls":4},{"$f":"(D4*E4)+(D5*E5)","v":3589.999999999878}]
[]
[]
[]
[]
[]
[]
[{"$nulls":5},"Пропозиція по тендеру","Запропоновано","Ціна","Кількість","Сума"]
[{"$nulls":5},"ДСП Egger U 963 ST9 Діамант сірий (Антрацит) 2800х2070х25 мм Нарізані ДСП плити товщина 25 мл. Темно сірого або чорного кольору з матавим покриттям з кромкою чорного кольору.\nВисота 2700 см (з кромкою)\nШирина 30 см (з кромкою)","ДСП U963 ST9 Діамант сірий 2800х2070х25 мм EGGER (2024-26)\nВисота 2700 см (з кромкою)\nШирина 30 см (з кромкою)",22.57,{"v":30,"d":"30.00"},{"$f":"H15*I15","v":{"v":677.1,"d":"677.10"}}]
[{"$nulls":5},"ДСП Egger U 963 ST9 Діамант сірий (Антрацит) 2800х2070х25 мм Нарізані ДСП плити товщина 25 мл. Темно сірого або чорного кольору з матавим покриттям з кромкою чорного кольору. Довжина 900 см (з кромкою)\nШирина 30 см (без кромки)","ДСП U963 ST9 Діамант сірий 2800х2070х25 мм EGGER (2024-26)\nДовжина 900 см (з кромкою)\nШирина 30 см (без кромки)",19.42,{"v":150,"d":"150.00"},{"$f":"H16*I16","v":{"v":2913.0000000000005,"d":"2,913.00"}}]
[{"$nulls":9},{"$f":"SUM(J15:J16)","v":{"v":3590.1000000000004,"d":"3,590.10"}}]
{"$rows_empty":29}
[{"$nulls":4},"Before"]
[{"$nulls":5},"Description","UoM","Qty","Price","Amount"]
[{"$nulls":4},227,"Egger chipboard U 963 ST9 Diamond gray (Anthracite) 2800x2070x25 mm Sliced chipboard boards 25 ml thick. Dark gray or black with a matte finish with a black edge banding. Height 2700 mm (with edge banding) Width 300 mm (with edge banding)","sheet",14,188.3,{"$f":"H49*I49","v":{"v":2636.2000000000003,"d":"2,636.20"}}]
[{"$nulls":4},228,"Edge ABS U963 ST9 Diamond Gray 43*2 mm (75 m/p) EGGER Щ(2024-26)","linear meter",510,1.87,{"$f":"H50*I50","v":{"v":953.7,"d":"953.70"}}]
[{"$nulls":9},{"$f":"SUM(J49:J50)","v":{"v":3589.9000000000005,"d":"3,589.90"}}]
[{"$nulls":4},"Now"]
[{"$nulls":4},227,"Chipboard U963 ST9 Diamond gray 2800x2070x25 mm EGGER (2024-26) Height 2700 mm (with edge) Width 300 mm (with edge)","pcs",30,22.57,{"$f":"H53*I53","v":{"v":677.1,"d":"677.10"}}]
[{"$nulls":4},228,"Chipboard U963 ST9 Diamond gray 2800x2070x25 mm EGGER (2024-26) Length 900 mm (with edge banding) Width 300 mm (without edge banding)","pcs",150,19.41,{"$f":"H54*I54","v":{"v":2911.5,"d":"2,911.50"}}]
[{"$nulls":9},{"$f":"SUM(J53:J54)","v":{"v":3588.6,"d":"3,588.60"}}]

{"sheet":"Sheet1","index":2,"n_rows":6,"n_cols":8,"rows_kept":6,"hidden":true}
[]
[{"$nulls":4},"Плити мінераловатні ТЕХНОБЛОК СТАНДАРТ 1200*600*100мм (6 плит)",411,"м2","Високопілля, вул. Енергетична (Гагаріна), 7"]
[{"$nulls":4},"Утеплювач Техноблок Стандарт 1200х600х50мм (5,76/8пл) МП",186,"м2","Високопілля, вул. Енергетична (Гагаріна), 7"]
[{"$nulls":4},"Плити теплоізоляційні з минеральної вати на синтетичному зв'язуючому Izovat-LS(1000x600x100 мм)",33,"м2","Високопілля, вул. Енергетична (Гагаріна), 7"]
[{"$nulls":4},"Плити мінераловатні ТЕХНОБЛОК СТАНДАРТ 1200*600*100мм (6 плит)",250,"м2","Shkilna 104, Kalynivske village, 74131 , Beryslav district, Kherson Oblast \n(47.11839256223751, 32.982446441864816)"]
[{"$nulls":4},"Плити мінераловатні ТЕХНОБЛОК СТАНДАРТ 1200*600*100мм (6 плит)",300,"м2","Shkilna 120, Kalynivske village, 74131 , Beryslav district, Kherson Oblast (47.11650667082786, 32.97544873404343)"]